Workbook

Sheet Sheet2
E8: Event 1 | G8: Event 2 | I8: Event 3 | K8: Event 4 | M8: Event 5 | O8: National | Q8: TOTAL
B9: Pos | E9: pts | F9: f/d | G9: pts | H9: f/d | I9: pts | J9: f/d | K9: pts | L9: f/d | M9: pts | N9: f/d | O9: pts | P9: f/d | Q9: pts | R9: f/d
B10: 1 | C10: Craig | D10: MacGillivray | E10: 40 | F10: -2 | G10: 154 | H10: 9 | K10: 78 | L10: 2 | M10: 154 | N10: 11 | O10: 165 | P10: 6 | Q10: =SUM(E10+G10+I10+K10+M10+O10) -> 591 | R10: =SUM(F10+H10+J10+L10+N10+P10) -> 26
B11: 2 | C11: Mike | D11: Watson | E11: 110 | F11: 4 | G11: 56 | H11: 0 | I11: 154 | J11: 9 | K11: 40 | L11: -2 | M11: 78 | N11: 0 | O11: 84 | P11: -4 | Q11: =SUM(E11+G11+I11+K11+M11+O11) -> 522 | R11: =SUM(F11+H11+J11+L11+N11+P11) -> 7
B12: 3 | C12: Paul | D12: Jamieson | E12: 78 | F12: 0 | G12: 40 | H12: -2 | I12: 110 | J12: 2 | K12: 110 | L12: 8 | M12: 56 | N12: -1 | O12: 117 | P12: -1 | Q12: =SUM(E12+G12+I12+K12+M12+O12) -> 511 | R12: =SUM(F12+H12+J12+L12+N12+P12) -> 6
B13: 4 | C13: Robert | D13: Miller | E13: 154 | F13: 12 | G13: 29 | I13: 56 | J13: 2 | K13: 40 | L13: -1 | M13: 110 | N13: 2 | O13: 60 | P13: -2 | Q13: =SUM(E13+G13+I13+K13+M13+O13) -> 449 | R13: =SUM(F13+H13+J13+L13+N13+P13) -> 13
B14: 5 | C14: Barry | D14: Campbell | E14: 78 | F14: 3 | G14: 40 | H14: -2 | I14: 78 | J14: 1 | K14: 56 | L14: 0 | M14: 78 | N14: 3 | O14: 60 | P14: -1 | Q14: =SUM(E14+G14+I14+K14+M14+O14) -> 390 | R14: =SUM(F14+H14+J14+L14+N14+P14) -> 4
B15: 6 | C15: Danny | D15: Maxwell | E15: 56 | F15: -2 | G15: 56 | H15: 2 | I15: 56 | J15: 1 | K15: 40 | L15: -2 | M15: 22 | O15: 117 | P15: 4 | Q15: =SUM(E15+G15+I15+K15+M15+O15) -> 347 | R15: =SUM(F15+H15+J15+L15+N15+P15) -> 3
B16: 7 | C16: Pat | D16: McKinney | E16: 56 | F16: -1 | G16: 29 | O16: 231 | P16: 14 | Q16: =SUM(E16+G16+I16+K16+M16+O16) -> 316 | R16: =SUM(F16+H16+J16+L16+N16+P16) -> 13
B17: 8 | C17: Dougie | D17: Melrose | E17: 29 | G17: 78 | H17: 0 | I17: 40 | J17: -3 | K17: 40 | L17: -3 | M17: 15 | O17: 84 | P17: -3 | Q17: =SUM(E17+G17+I17+K17+M17+O17) -> 286 | R17: =SUM(F17+H17+J17+L17+N17+P17) -> -9
B18: 9 | C18: Kenny | D18: Mollins | E18: 56 | F18: 1 | I18: 40 | J18: -1 | K18: 78 | L18: 1 | M18: 40 | N18: -3 | O18: 30 | Q18: =SUM(E18+G18+I18+K18+M18+O18) -> 244 | R18: =SUM(F18+H18+J18+L18+N18+P18) -> -2
B19: 10 | C19: Martin | D19: Cook | E19: 20 | G19: 22 | I19: 40 | J19: -2 | K19: 56 | L19: -2 | M19: 22 | O19: 84 | P19: -4 | Q19: =SUM(E19+G19+I19+K19+M19+O19) -> 244 | R19: =SUM(F19+H19+J19+L19+N19+P19) -> -8
B20: 11 | C20: Richy | D20: McDonald | K20: 154 | L20: 5 | O20: 84 | P20: 0 | Q20: =SUM(E20+G20+I20+K20+M20+O20) -> 238 | R20: =SUM(F20+H20+J20+L20+N20+P20) -> 5
B21: 12 | C21: Alex | D21: Coutts | E21: 20 | G21: 56 | H21: -1 | I21: 27 | M21: 56 | N21: -2 | O21: 60 | P21: -2 | Q21: =SUM(E21+G21+I21+K21+M21+O21) -> 219 | R21: =SUM(F21+H21+J21+L21+N21+P21) -> -5
B22: 13 | C22: Darren | D22: Ellis | G22: 40 | H22: -3 | I22: 56 | J22: 0 | K22: 40 | L22: -1 | O22: 60 | P22: -1 | Q22: =SUM(E22+G22+I22+K22+M22+O22) -> 196 | R22: =SUM(F22+H22+J22+L22+N22+P22) -> -5
B23: 14 | C23: Davie | D23: Hutchison | E23: 25 | G23: 40 | H23: -2 | I23: 40 | J23: -2 | K23: 40 | L23: -2 | M23: 20 | O23: 30 | Q23: =SUM(E23+G23+I23+K23+M23+O23) -> 195 | R23: =SUM(F23+H23+J23+L23+N23+P23) -> -6
B24: 15 | C24: George | D24: Smith | E24: 22 | G24: 22 | I24: 40 | J24: -2 | M24: 40 | N24: -1 | O24: 60 | P24: -2 | Q24: =SUM(E24+G24+I24+K24+M24+O24) -> 184 | R24: =SUM(F24+H24+J24+L24+N24+P24) -> -5
B25: 16 | C25: Hugh | D25: Adams | E25: 22 | G25: 20 | I25: 40 | J25: -1 | K25: 25 | M25: 40 | N25: -3 | O25: 33 | Q25: =SUM(E25+G25+I25+K25+M25+O25) -> 180 | R25: =SUM(F25+H25+J25+L25+N25+P25) -> -4
B26: 17 | C26: Derek | D26: Dudgeon | E26: 40 | F26: -1 | G26: 15 | I26: 22 | M26: 40 | N26: -2 | O26: 60 | P26: -2 | Q26: =SUM(E26+G26+I26+K26+M26+O26) -> 177 | R26: =SUM(F26+H26+J26+L26+N26+P26) -> -5
B27: 18 | C27: Scott | D27: MacFarlane | E27: 40 | F27: -3 | G27: 78 | H27: 3 | K27: 56 | L27: -1 | Q27: =SUM(E27+G27+I27+K27+M27+O27) -> 174 | R27: =SUM(F27+H27+J27+L27+N27+P27) -> -1
B28: 19 | C28: Lance | D28: Little | E28: 56 | F28: 0 | I28: 78 | J28: 1 | M28: 40 | N28: -3 | Q28: =SUM(E28+G28+I28+K28+M28+O28) -> 174 | R28: =SUM(F28+H28+J28+L28+N28+P28) -> -2
B29: 20 | C29: Ian | D29: Craig | E29: 40 | F29: -3 | G29: 27 | K29: 27 | O29: 60 | P29: -1 | Q29: =SUM(E29+G29+I29+K29+M29+O29) -> 154 | R29: =SUM(F29+H29+J29+L29+N29+P29) -> -4
B30: 21 | C30: Greg | D30: Ford | E30: 15 | G30: 20 | I30: 40 | J30: -1 | K30: 15 | M30: 20 | O30: 30 | Q30: =SUM(E30+G30+I30+K30+M30+O30) -> 140 | R30: =SUM(F30+H30+J30+L30+N30+P30) -> -1
B31: 22 | C31: Paul | D31: McPhillips | E31: 0 | G31: 110 | H31: 7 | K31: 29 | Q31: =SUM(E31+G31+I31+K31+M31+O31) -> 139 | R31: =SUM(F31+H31+J31+L31+N31+P31) -> 7
B32: 23 | C32: Guilio | D32: Rea | E32: 40 | F32: -2 | G32: 20 | I32: 22 | K32: 56 | L32: 0 | Q32: =SUM(E32+G32+I32+K32+M32+O32) -> 138 | R32: =SUM(F32+H32+J32+L32+N32+P32) -> -2
B33: 24 | C33: Pat | D33: Killen | E33: 40 | F33: -2 | G33: 27 | I33: 56 | J33: -2 | Q33: =SUM(E33+G33+I33+K33+M33+O33) -> 123 | R33: =SUM(F33+H33+J33+L33+N33+P33) -> -4
B34: 25 | C34: John | D34: Bennett | G34: 40 | H34: -2 | I34: 20 | O34: 60 | P34: -1 | Q34: =SUM(E34+G34+I34+K34+M34+O34) -> 120 | R34: =SUM(F34+H34+J34+L34+N34+P34) -> -3
B35: 26 | C35: Joe | D35: Hutchison | E35: 15 | G35: 15 | I35: 22 | K35: 20 | M35: 15 | O35: 30 | Q35: =SUM(E35+G35+I35+K35+M35+O35) -> 117 | R35: =SUM(F35+H35+J35+L35+N35+P35) -> 0
B36: 27 | C36: Martin | D36: Miller | E36: 20 | G36: 29 | K36: 15 | M36: 15 | O36: 33 | Q36: =SUM(E36+G36+I36+K36+M36+O36) -> 112 | R36: =SUM(F36+H36+J36+L36+N36+P36) -> 0
B37: 28 | C37: Stevie | D37: Dick | E37: 40 | F37: -1 | G37: 25 | M37: 40 | Q37: =SUM(E37+G37+I37+K37+M37+O37) -> 105 | R37: =SUM(F37+H37+J37+L37+N37+P37) -> -1
B38: 29 | C38: Colin | D38: McAlpine | E38: 32 | G38: 29 | I38: 15 | O38: 23 | Q38: =SUM(E38+G38+I38+K38+M38+O38) -> 99 | R38: =SUM(F38+H38+J38+L38+N38+P38) -> 0
B39: 30 | C39: Stuart | D39: Johnstone | G39: 56 | H39: 0 | M39: 40 | N39: -1 | Q39: =SUM(E39+G39+I39+K39+M39+O39) -> 96 | R39: =SUM(F39+H39+J39+L39+N39+P39) -> -1
B40: 31 | C40: Andy | D40: Jackson | G40: 22 | I40: 20 | K40: 22 | O40: 23 | Q40: =SUM(E40+G40+I40+K40+M40+O40) -> 87 | R40: =SUM(F40+H40+J40+L40+N40+P40) -> 0
B41: 32 | C41: Mike | D41: Cameron | E41: 27 | G41: 40 | H41: =3 -> 3 | I41: 15 | Q41: =SUM(E41+G41+I41+K41+M41+O41) -> 82 | R41: =SUM(F41+H41+J41+L41+N41+P41) -> 3
B42: 33 | C42: Gordon | D42: Wilkie | G42: 40 | H42: -3 | I42: 40 | J42: -2 | Q42: =SUM(E42+G42+I42+K42+M42+O42) -> 80 | R42: =SUM(F42+H42+J42+L42+N42+P42) -> -5
B43: 34 | C43: George | D43: Cunningham | E43: 22 | G43: 27 | I43: 20 | Q43: =SUM(E43+G43+I43+K43+M43+O43) -> 69 | R43: =SUM(F43+H43+J43+L43+N43+P43) -> 0
B44: 35 | C44: Carlo | D44: Coxon | G44: 27 | M44: 40 | Q44: =SUM(E44+G44+I44+K44+M44+O44) -> 67 | R44: =SUM(F44+H44+J44+L44+N44+P44) -> 0
B45: 36 | C45: Stephen | D45: McArthur | K45: 40 | L45: -1 | M45: 22 | Q45: =SUM(E45+G45+I45+K45+M45+O45) -> 62 | R45: =SUM(F45+H45+J45+L45+N45+P45) -> -1
B46: 37 | C46: John | D46: Williamson | M46: 56 | N46: 0 | Q46: =SUM(E46+G46+I46+K46+M46+O46) -> 56 | R46: =SUM(F46+H46+J46+L46+N46+P46) -> 0
B47: 38 | C47: Paul | D47: Shanks | M47: 56 | N47: -1 | Q47: =SUM(E47+G47+I47+K47+M47+O47) -> 56 | R47: =SUM(F47+H47+J47+L47+N47+P47) -> -1
B48: 39 | C48: Jim | D48: Daly | E48: 15 | K48: 40 | L48: -3 | Q48: =SUM(E48+G48+I48+K48+M48+O48) -> 55 | R48: =SUM(F48+H48+J48+L48+N48+P48) -> -3
B49: 40 | C49: Stewart | D49: Burns | F49: - | G49: 22 | I49: 20 | Q49: =SUM(E49+G49+I49+K49+M49+O49) -> 42 | R49: =SUM(F49+H49+J49+L49+N49+P49) -> 
B50: 41 | C50: Bob | D50: McCabe | E50: 40 | F50: -3 | Q50: =SUM(E50+G50+I50+K50+M50+O50) -> 40 | R50: =SUM(F50+H50+J50+L50+N50+P50) -> -3
B51: 42 | C51: Michael | D51: Philbin | E51: 0 | G51: 40 | H51: -3 | Q51: =SUM(E51+G51+I51+K51+M51+O51) -> 40 | R51: =SUM(F51+H51+J51+L51+N51+P51) -> -3
B52: 43 | C52: John | D52: McPhillips | G52: 15 | K52: 22 | Q52: =SUM(E52+G52+I52+K52+M52+O52) -> 37 | R52: =SUM(F52+H52+J52+L52+N52+P52) -> 0
B53: 44 | C53: David | D53: Davis | G53: 15 | K53: 15 | Q53: =SUM(E53+G53+I53+K53+M53+O53) -> 30 | R53: =SUM(F53+H53+J53+L53+N53+P53) -> 0
B54: 45 | C54: James | D54: Davis | G54: 15 | K54: 15 | Q54: =SUM(E54+G54+I54+K54+M54+O54) -> 30 | R54: =SUM(F54+H54+J54+L54+N54+P54) -> 0
B55: 46 | C55: Gary | D55: Coatts | O55: 23 | Q55: =SUM(E55+G55+I55+K55+M55+O55) -> 23 | R55: =SUM(F55+H55+J55+L55+N55+P55) -> 0
B56: 47 | C56: Alan | D56: Brown | E56: 22 | G56: 15 | I56: 20 | O56: 23 | Q56: 22 | R56: =SUM(F56+H56+J56+L56+N56+P56) -> 0
B57: 48 | C57: Willie | D57: Daly | K57: 22 | Q57: =SUM(E57+G57+I57+K57+M57+O57) -> 22 | R57: =SUM(F57+H57+J57+L57+N57+P57) -> 0
B58: 49 | C58: Ian | D58: Graham | K58: 22 | Q58: =SUM(E58+G58+I58+K58+M58+O58) -> 22 | R58: =SUM(F58+H58+J58+L58+N58+P58) -> 0
B59: 50 | C59: Alec | D59: Hopkins | K59: 22 | Q59: =SUM(E59+G59+I59+K59+M59+O59) -> 22 | R59: =SUM(F59+H59+J59+L59+N59+P59) -> 0
B60: 51 | C60: James | D60: McVeigh | G60: 22 | Q60: =SUM(E60+G60+I60+K60+M60+O60) -> 22 | R60: =SUM(F60+H60+J60+L60+N60+P60) -> 0
B61: 52 | C61: Sean | D61: Campbell | M61: 15 | Q61: =SUM(E61+G61+I61+K61+M61+O61) -> 15 | R61: =SUM(F61+H61+J61+L61+N61+P61) -> 0
B62: 53 | C62: James | D62: Wilson | K62: 15 | Q62: =SUM(E62+G62+I62+K62+M62+O62) -> 15 | R62: =SUM(F62+H62+J62+L62+N62+P62) -> 0
B63: 54 | Q63: =SUM(E63+G63+I63+K63+M63+O63) -> 0 | R63: =SUM(F63+H63+J63+L63+N63+P63) -> 0
B64: 55 | Q64: =SUM(E64+G64+I64+K64+M64+O64) -> 0 | R64: =SUM(F64+H64+J64+L64+N64+P64) -> 0
B65: 56 | Q65: =SUM(E65+G65+I65+K65+M65+O65) -> 0 | R65: =SUM(F65+H65+J65+L65+N65+P65) -> 0
B66: 57 | Q66: =SUM(E66+G66+I66+K66+M66+O66) -> 0 | R66: =SUM(F66+H66+J66+L66+N66+P66) -> 0
B67: 58 | Q67: =SUM(E67+G67+I67+K67+M67+O67) -> 0 | R67: =SUM(F67+H67+J67+L67+N67+P67) -> 0
B68: 59 | Q68: =SUM(E68+G68+I68+K68+M68+O68) -> 0 | R68: =SUM(F68+H68+J68+L68+N68+P68) -> 0
B69: 60 | Q69: =SUM(E69+G69+I69+K69+M69+O69) -> 0 | R69: =SUM(F69+H69+J69+L69+N69+P69) -> 0
B70: 61 | Q70: =SUM(E70+G70+I70+K70+M70+O70) -> 0 | R70: =SUM(F70+H70+J70+L70+N70+P70) -> 0
B71: 62 | Q71: =SUM(E71+G71+I71+K71+M71+O71) -> 0 | R71: =SUM(F71+H71+J71+L71+N71+P71) -> 0
B72: 63 | Q72: =SUM(E72+G72+I72+K72+M72+O72) -> 0 | R72: =SUM(F72+H72+J72+L72+N72+P72) -> 0
B73: 64 | Q73: 0 | R73: 0
B74: 65 | Q74: 0 | R74: 0
B75: 66 | Q75: 0 | R75: 0
B76: 67 | Q76: 0 | R76: 0
B77: 68 | Q77: 0 | R77: 0
B78: 69 | Q78: 0 | R78: 0
B79: 70 | Q79: 0 | R79: 0
B80: 71 | Q80: 0 | R80: 0
B81: 72 | Q81: 0 | R81: 0
B82: 73 | Q82: 0 | R82: 0
B83: 74 | Q83: 0 | R83: 0
B84: 75 | Q84: 0 | R84: 0
B85: 76 | Q85: 0 | R85: 0
B86: 77 | Q86: 0 | R86: 0
B87: 78 | Q87: 0 | R87: 0
B88: 79 | Q88: 0 | R88: 0
B89: 80 | Q89: 0 | R89: 0
B90: 81 | Q90: 0 | R90: 0
B91: 82 | Q91: 0 | R91: 0
B92: 83 | Q92: 0 | R92: 0
B93: 84 | Q93: 0 | R93: 0
B94: 85 | Q94: 0 | R94: 0
B95: 86 | Q95: 0 | R95: 0
B96: 87 | Q96: 0 | R96: 0
B97: 88 | Q97: 0 | R97: 0
B98: 89 | Q98: 0 | R98: 0
B99: 90 | Q99: 0 | R99: 0
B100: 91 | Q100: 0 | R100: 0
B101: 92 | Q101: 0 | R101: 0
B102: 93 | Q102: 0 | R102: 0
B103: 94 | Q103: 0 | R103: 0
B104: 95 | Q104: 0 | R104: 0
B105: 96 | Q105: 0 | R105: 0
B106: 97 | Q106: 0 | R106: 0
B107: 98 | Q107: 0 | R107: 0
B108: 99 | Q108: 0 | R108: 0
B109: 100 | Q109: 0 | R109: 0
B110: 101 | Q110: 0 | R110: 0
B111: 102 | Q111: 0 | R111: 0
B112: 103 | Q112: 0 | R112: 0
B113: 104 | Q113: 0 | R113: 0
B114: 105 | Q114: =SUM(E114+G114+I114+K114+M114+O114) -> 0 | R114: =SUM(F114+H114+J114+L114+N114+P114) -> 0
B115: 106 | Q115: 0 | R115: 0
B116: 107 | Q116: 0 | R116: 0
B117: 108 | Q117: 0 | R117: 0
B118: 109 | Q118: =SUM(E118+G118+I118+K118+M118+O118) -> 0 | R118: 0
B119: 110 | Q119: 0 | R119: 0
B120: 111 | Q120: 0 | R120: 0
B136: 127 | Q136: =SUM(E136+G136+I136+K136+M136+O136) -> 0 | R136: =SUM(F136+H136+J136+L136+N136+P136) -> 0

Sheet Sheet3
